[Event "Titled Tuesday Blitz May 30 Early 2023"]
[White "Dilmukhametov, Artur"]
[Black "Paravyan, David"]
[WhiteFideId "24179922"]
[BlackFideId "4194985"]
[WhiteElo "2242"]
[BlackElo "2563"]
[Result "1-0"]
[Round "06"]
[TimeControl "180+2"]
[Date "2023.05.30"]
[WhiteClock "0:00:25"]
[BlackClock "0:00:05"]

1. e4 {[%clk 0:02:57]}  e5 {[%clk 0:02:59]} 2. Bc4 {[%clk 0:02:56]}  Nf6 {[%clk 0:02:59]} 3. d4 {[%clk 0:02:56]}  exd4 {[%clk 0:02:59]} 4. Nf3 {[%clk 0:02:55]}  Nxe4 {[%clk 0:02:57]} 5. Qxd4 {[%clk 0:02:55]}  Nf6 {[%clk 0:02:57]} 6. Nc3 {[%clk 0:02:55]}  c6 {[%clk 0:02:57]} 7. Bg5 {[%clk 0:02:54]}  d5 {[%clk 0:02:57]} 8. O-O-O {[%clk 0:02:54]}  Be7 {[%clk 0:02:57]} 9. Rhe1 {[%clk 0:02:28]}  Be6 {[%clk 0:02:55]} 10. Bd3 {[%clk 0:02:25]}  Nbd7 {[%clk 0:02:54]} 11. Qh4 {[%clk 0:02:24]}  Nc5 {[%clk 0:02:33]} 12. Nd4 {[%clk 0:02:05]}  h6 {[%clk 0:02:33]} 13. f4 {[%clk 0:01:50]}  Nxd3+ {[%clk 0:02:22]} 14. Rxd3 {[%clk 0:01:49]}  O-O {[%clk 0:02:08]} 15. Bxh6 {[%clk 0:01:44]}  Nh7 {[%clk 0:01:57]} 16. Qh5 {[%clk 0:01:40]}  gxh6 {[%clk 0:01:48]} 17. Qxh6 {[%clk 0:01:21]}  Kh8 {[%clk 0:01:39]} 18. Rxe6 {[%clk 0:01:15]}  fxe6 {[%clk 0:01:40]} 19. Nxe6 {[%clk 0:01:14]}  Rf7 {[%clk 0:01:27]} 20. Nxd8 {[%clk 0:01:14]}  Rxd8 {[%clk 0:01:28]} 21. Ne2 {[%clk 0:01:06]}  Rd6 {[%clk 0:01:19]} 22. Qh5 {[%clk 0:01:05]}  Rdf6 {[%clk 0:01:18]} 23. g3 {[%clk 0:00:58]}  Bc5 {[%clk 0:01:18]} 24. Nd4 {[%clk 0:00:57]}  Re7 {[%clk 0:01:15]} 25. Nf3 {[%clk 0:00:57]}  Rfe6 {[%clk 0:01:13]} 26. Ne5 {[%clk 0:00:57]}  Kg7 {[%clk 0:01:09]} 27. Qg4+ {[%clk 0:00:55]}  Kh6 {[%clk 0:01:07]} 28. Nf7+ {[%clk 0:00:51]}  Rxf7 {[%clk 0:01:07]} 29. Qxe6+ {[%clk 0:00:52]}  Kg7 {[%clk 0:01:08]} 30. f5 {[%clk 0:00:51]}  Re7 {[%clk 0:01:06]} 31. Qg6+ {[%clk 0:00:44]}  Kf8 {[%clk 0:01:01]} 32. f6 {[%clk 0:00:45]}  Rf7 {[%clk 0:01:01]} 33. g4 {[%clk 0:00:39]}  Bd6 {[%clk 0:00:57]} 34. Rf3 {[%clk 0:00:37]}  Bxh2 {[%clk 0:00:46]} 35. g5 {[%clk 0:00:37]}  Be5 {[%clk 0:00:43]} 36. c3 {[%clk 0:00:36]}  d4 {[%clk 0:00:41]} 37. cxd4 {[%clk 0:00:36]}  Bxd4 {[%clk 0:00:41]} 38. Rd3 {[%clk 0:00:36]}  c5 {[%clk 0:00:41]} 39. b4 {[%clk 0:00:36]}  b6 {[%clk 0:00:33]} 40. Qf5 {[%clk 0:00:36]}  Rc7 {[%clk 0:00:28]} 41. b5 {[%clk 0:00:29]}  Kg8 {[%clk 0:00:12]} 42. Kd1 {[%clk 0:00:28]}  Nf8 {[%clk 0:00:10]} 43. g6 {[%clk 0:00:27]}  Nd7 {[%clk 0:00:05]} 44. Qe6+ {[%clk 0:00:24]}  Kf8 {[%clk 0:00:05]} 45. Qe7+ {[%clk 0:00:24]}  Kg8 {[%clk 0:00:05]} 46. Qg7# {[%clk 0:00:25]} 1-0


[Site "https://www.chess.com"]

[Event "Titled Tuesday Blitz May 30 Early 2023"]
[White "Samunenkov, Ihor"]
[Black "Shukhman, Anna"]
[WhiteFideId "14187086"]
[BlackFideId "54180058"]
[WhiteElo "2457"]
[BlackElo "2235"]
[Result "0-1"]
[Round "06"]
[TimeControl "180+2"]
[Date "2023.05.30"]
[WhiteClock "0:00:04"]
[BlackClock "0:00:15"]

1. d4 {[%clk 0:03:00]}  Nf6 {[%clk 0:02:59]} 2. c4 {[%clk 0:03:01]}  g6 {[%clk 0:02:58]} 3. Nc3 {[%clk 0:03:01]}  d5 {[%clk 0:02:59]} 4. cxd5 {[%clk 0:03:01]}  Nxd5 {[%clk 0:02:59]} 5. Bd2 {[%clk 0:03:02]}  Nb6 {[%clk 0:02:58]} 6. e3 {[%clk 0:03:00]}  Bg7 {[%clk 0:02:58]} 7. h4 {[%clk 0:02:52]}  h5 {[%clk 0:02:55]} 8. Bb5+ {[%clk 0:02:43]}  c6 {[%clk 0:02:53]} 9. Be2 {[%clk 0:02:37]}  N8d7 {[%clk 0:02:52]} 10. Nf3 {[%clk 0:02:34]}  c5 {[%clk 0:02:50]} 11. d5 {[%clk 0:02:30]}  Nf6 {[%clk 0:02:38]} 12. e4 {[%clk 0:02:29]}  Bg4 {[%clk 0:02:37]} 13. O-O {[%clk 0:02:26]}  O-O {[%clk 0:02:31]} 14. Bg5 {[%clk 0:02:25]}  Qc7 {[%clk 0:02:04]} 15. Rc1 {[%clk 0:02:22]}  a6 {[%clk 0:01:58]} 16. Qd2 {[%clk 0:02:06]}  Rad8 {[%clk 0:01:55]} 17. Bf4 {[%clk 0:02:02]}  Qc8 {[%clk 0:01:50]} 18. Ne5 {[%clk 0:02:01]}  Bxe2 {[%clk 0:01:47]} 19. Qxe2 {[%clk 0:02:02]}  e6 {[%clk 0:01:47]} 20. b4 {[%clk 0:01:39]}  c4 {[%clk 0:01:30]} 21. Be3 {[%clk 0:01:36]}  Qc7 {[%clk 0:01:18]} 22. dxe6 {[%clk 0:01:34]}  Qxe5 {[%clk 0:01:14]} 23. Bxb6 {[%clk 0:01:33]}  Rd3 {[%clk 0:01:14]} 24. exf7+ {[%clk 0:01:11]}  Rxf7 {[%clk 0:01:14]} 25. f4 {[%clk 0:01:10]}  Qe6 {[%clk 0:00:58]} 26. Bf2 {[%clk 0:01:01]}  Ng4 {[%clk 0:00:55]} 27. Be1 {[%clk 0:00:46]}  Bd4+ {[%clk 0:00:46]} 28. Kh1 {[%clk 0:00:46]}  Be3 {[%clk 0:00:17]} 29. Rd1 {[%clk 0:00:39]}  Rxd1 {[%clk 0:00:17]} 30. Qxd1 {[%clk 0:00:37]}  Bxf4 {[%clk 0:00:17]} 31. Qd5 {[%clk 0:00:22]}  Qxd5 {[%clk 0:00:12]} 32. exd5 {[%clk 0:00:18]}  Be5 {[%clk 0:00:12]} 33. Rxf7 {[%clk 0:00:18]}  Kxf7 {[%clk 0:00:13]} 34. Ne4 {[%clk 0:00:19]}  Ne3 {[%clk 0:00:13]} 35. d6 {[%clk 0:00:12]}  b5 {[%clk 0:00:13]} 36. Kg1 {[%clk 0:00:07]}  Nc2 {[%clk 0:00:13]} 37. Bd2 {[%clk 0:00:04]}  Ke6 {[%clk 0:00:13]} 38. Nc5+ {[%clk 0:00:01]}  Kxd6 {[%clk 0:00:13]} 39. Nxa6 {[%clk 0:00:02]}  Bd4+ {[%clk 0:00:14]} 40. Kf1 {[%clk 0:00:02]}  c3 {[%clk 0:00:15]} 41. Bc1 {[%clk 0:00:02]}  Ne3+ {[%clk 0:00:14]} 42. Ke2 {[%clk 0:00:02]}  Nxg2 {[%clk 0:00:13]} 43. Kd3 {[%clk 0:00:02]}  Bf6 {[%clk 0:00:13]} 44. Nc5 {[%clk 0:00:03]}  Nxh4 {[%clk 0:00:13]} 45. Ne4+ {[%clk 0:00:03]}  Ke6 {[%clk 0:00:13]} 46. a4 {[%clk 0:00:01]}  bxa4 {[%clk 0:00:13]} 47. Nxf6 {[%clk 0:00:01]}  Kxf6 {[%clk 0:00:14]} 48. b5 {[%clk 0:00:02]}  Nf5 {[%clk 0:00:13]} 49. b6 {[%clk 0:00:02]}  Nd6 {[%clk 0:00:13]} 50. Bf4 {[%clk 0:00:02]}  Nb7 {[%clk 0:00:13]} 51. Kxc3 {[%clk 0:00:03]}  Kf5 {[%clk 0:00:14]} 52. Bh2 {[%clk 0:00:03]}  g5 {[%clk 0:00:14]} 53. Kb4 {[%clk 0:00:04]}  g4 {[%clk 0:00:14]} 54. Kxa4 {[%clk 0:00:02]}  h4 {[%clk 0:00:15]} 55. Kb5 {[%clk 0:00:03]}  g3 {[%clk 0:00:15]} 56. Bg1 {[%clk 0:00:03]}  h3 {[%clk 0:00:15]} 57. Kc6 {[%clk 0:00:04]}  h2 {[%clk 0:00:15]} 0-1


[Site "https://www.chess.com"]

[Event "Titled Tuesday Blitz May 30 Early 2023"]
[White "Itgelt, Khuyagtsogt"]
[Black "Horak, Martin"]
[WhiteFideId "4902912"]
[BlackFideId "367095"]
[WhiteElo "2227"]
[BlackElo "2091"]
[Result "1-0"]
[Round "06"]
[TimeControl "180+2"]
[Date "2023.05.30"]
[WhiteClock "0:02:26"]
[BlackClock "0:00:06"]

1. d4 {[%clk 0:03:00]}  Nf6 {[%clk 0:03:00]} 2. c4 {[%clk 0:03:00]}  e6 {[%clk 0:03:00]} 3. Nc3 {[%clk 0:03:00]}  Bb4 {[%clk 0:03:00]} 4. Qc2 {[%clk 0:03:00]}  O-O {[%clk 0:03:00]} 5. Nf3 {[%clk 0:02:57]}  d5 {[%clk 0:02:54]} 6. a3 {[%clk 0:02:57]}  Bxc3+ {[%clk 0:02:53]} 7. Qxc3 {[%clk 0:02:57]}  dxc4 {[%clk 0:02:51]} 8. Qxc4 {[%clk 0:02:58]}  b6 {[%clk 0:02:52]} 9. Bg5 {[%clk 0:02:57]}  Ba6 {[%clk 0:02:51]} 10. Qc2 {[%clk 0:02:57]}  h6 {[%clk 0:02:27]} 11. Bh4 {[%clk 0:02:51]}  Nbd7 {[%clk 0:02:14]} 12. Rd1 {[%clk 0:02:45]}  Qe7 {[%clk 0:01:37]} 13. Ne5 {[%clk 0:02:40]}  g5 {[%clk 0:01:17]} 14. Nc6 {[%clk 0:02:40]}  Qe8 {[%clk 0:01:11]} 15. Bg3 {[%clk 0:02:38]}  Nc5 {[%clk 0:00:54]} 16. Nb4 {[%clk 0:02:38]}  Nce4 {[%clk 0:00:06]} 17. Nxa6 {[%clk 0:02:26]} 1-0


[Site "https://www.chess.com"]

[Event "Titled Tuesday Blitz May 30 Early 2023"]
[White "Ginzburg, Yakov"]
[Black "Weishaeutel, Moritz"]
[WhiteFideId "4157176"]
[BlackFideId "12967300"]
[WhiteElo "2305"]
[BlackElo "2301"]
[Result "0-1"]
[Round "06"]
[TimeControl "180+2"]
[Date "2023.05.30"]
[WhiteClock "0:00:22"]
[BlackClock "0:00:10"]

1. e4 {[%clk 0:03:00]}  e5 {[%clk 0:03:00]} 2. Nf3 {[%clk 0:03:00]}  Nf6 {[%clk 0:03:01]} 3. Nxe5 {[%clk 0:02:59]}  Nc6 {[%clk 0:03:01]} 4. Nf3 {[%clk 0:02:53]}  Nxe4 {[%clk 0:03:01]} 5. Qe2 {[%clk 0:02:53]}  Qe7 {[%clk 0:02:57]} 6. d3 {[%clk 0:02:53]}  Nf6 {[%clk 0:02:56]} 7. Bg5 {[%clk 0:02:51]}  Qxe2+ {[%clk 0:02:51]} 8. Bxe2 {[%clk 0:02:51]}  Be7 {[%clk 0:02:50]} 9. Nc3 {[%clk 0:02:49]}  h6 {[%clk 0:02:31]} 10. Bh4 {[%clk 0:02:42]}  d6 {[%clk 0:02:19]} 11. O-O-O {[%clk 0:02:41]}  Be6 {[%clk 0:02:18]} 12. d4 {[%clk 0:02:27]}  Nd5 {[%clk 0:02:12]} 13. Nxd5 {[%clk 0:02:26]}  Bxd5 {[%clk 0:02:12]} 14. Bxe7 {[%clk 0:02:26]}  Nxe7 {[%clk 0:02:11]} 15. Rhe1 {[%clk 0:02:24]}  O-O-O {[%clk 0:02:06]} 16. c4 {[%clk 0:02:21]}  Bxf3 {[%clk 0:02:00]} 17. Bxf3 {[%clk 0:02:20]}  Rhe8 {[%clk 0:02:00]} 18. Bg4+ {[%clk 0:02:16]}  Kb8 {[%clk 0:02:01]} 19. Rd2 {[%clk 0:02:07]}  Nc6 {[%clk 0:01:58]} 20. Rxe8 {[%clk 0:01:59]}  Rxe8 {[%clk 0:01:59]} 21. Bf3 {[%clk 0:01:43]}  Re1+ {[%clk 0:01:56]} 22. Kc2 {[%clk 0:01:43]}  Kc8 {[%clk 0:01:32]} 23. g3 {[%clk 0:01:32]}  Kd7 {[%clk 0:01:24]} 24. h4 {[%clk 0:01:32]}  g5 {[%clk 0:01:18]} 25. hxg5 {[%clk 0:01:31]}  hxg5 {[%clk 0:01:19]} 26. Bg4+ {[%clk 0:01:27]}  Kd8 {[%clk 0:01:15]} 27. Bf3 {[%clk 0:01:27]}  f5 {[%clk 0:01:11]} 28. a3 {[%clk 0:01:23]}  g4 {[%clk 0:01:09]} 29. Bxc6 {[%clk 0:01:21]}  bxc6 {[%clk 0:01:09]} 30. Kd3 {[%clk 0:01:18]}  Kd7 {[%clk 0:01:06]} 31. Re2 {[%clk 0:01:18]}  Rd1+ {[%clk 0:00:51]} 32. Rd2 {[%clk 0:01:17]}  Re1 {[%clk 0:00:50]} 33. Re2 {[%clk 0:01:16]}  Rd1+ {[%clk 0:00:51]} 34. Ke3 {[%clk 0:01:11]}  Ke6 {[%clk 0:00:51]} 35. f3 {[%clk 0:00:58]}  gxf3 {[%clk 0:00:40]} 36. Kxf3+ {[%clk 0:00:58]}  Kf6 {[%clk 0:00:41]} 37. Ke3 {[%clk 0:00:58]}  Rg1 {[%clk 0:00:40]} 38. Kf4 {[%clk 0:00:54]}  Rf1+ {[%clk 0:00:38]} 39. Ke3 {[%clk 0:00:54]}  Rc1 {[%clk 0:00:38]} 40. Kd3 {[%clk 0:00:52]}  Rg1 {[%clk 0:00:37]} 41. Re3 {[%clk 0:00:52]}  Kg5 {[%clk 0:00:33]} 42. b4 {[%clk 0:00:49]}  Kg4 {[%clk 0:00:32]} 43. Re7 {[%clk 0:00:48]}  Rxg3+ {[%clk 0:00:32]} 44. Kc2 {[%clk 0:00:48]}  f4 {[%clk 0:00:25]} 45. Rxc7 {[%clk 0:00:46]}  Rxa3 {[%clk 0:00:20]} 46. Rxc6 {[%clk 0:00:46]}  f3 {[%clk 0:00:21]} 47. Rxd6 {[%clk 0:00:44]}  f2 {[%clk 0:00:22]} 48. Rg6+ {[%clk 0:00:44]}  Kf5 {[%clk 0:00:10]} 49. Rg8 {[%clk 0:00:22]}  Rf3 {[%clk 0:00:10]} 0-1


[Site "https://www.chess.com"]

[Event "Titled Tuesday Blitz May 30 Early 2023"]
[White "Goryachkina, Aleksandra"]
[Black "Tanmay Jain"]
[WhiteFideId "4147103"]
[BlackFideId "45015481"]
[WhiteElo "2471"]
[BlackElo "2032"]
[Result "1-0"]
[Round "06"]
[TimeControl "180+2"]
[Date "2023.05.30"]
[WhiteClock "0:01:09"]
[BlackClock "0:00:39"]

1. e4 {[%clk 0:02:59]}  c5 {[%clk 0:02:58]} 2. Nf3 {[%clk 0:02:59]}  d6 {[%clk 0:02:58]} 3. Bb5+ {[%clk 0:02:53]}  Bd7 {[%clk 0:02:57]} 4. Bxd7+ {[%clk 0:02:53]}  Nxd7 {[%clk 0:02:58]} 5. O-O {[%clk 0:02:53]}  Ngf6 {[%clk 0:02:57]} 6. Re1 {[%clk 0:02:53]}  e5 {[%clk 0:02:58]} 7. c3 {[%clk 0:02:51]}  Be7 {[%clk 0:02:58]} 8. d4 {[%clk 0:02:51]}  cxd4 {[%clk 0:02:59]} 9. cxd4 {[%clk 0:02:51]}  O-O {[%clk 0:02:59]} 10. Nc3 {[%clk 0:02:51]}  Rc8 {[%clk 0:02:56]} 11. h3 {[%clk 0:02:51]}  a6 {[%clk 0:02:57]} 12. Bg5 {[%clk 0:02:41]}  h6 {[%clk 0:02:49]} 13. Bxf6 {[%clk 0:02:38]}  Bxf6 {[%clk 0:02:44]} 14. Qd2 {[%clk 0:02:29]}  Nb6 {[%clk 0:02:25]} 15. Rad1 {[%clk 0:02:29]}  Nc4 {[%clk 0:02:19]} 16. Qe2 {[%clk 0:02:29]}  b5 {[%clk 0:01:57]} 17. Nd5 {[%clk 0:02:13]}  exd4 {[%clk 0:01:48]} 18. b3 {[%clk 0:02:04]}  Nb6 {[%clk 0:01:44]} 19. Nxf6+ {[%clk 0:01:58]}  Qxf6 {[%clk 0:01:44]} 20. Nxd4 {[%clk 0:01:58]}  d5 {[%clk 0:01:41]} 21. e5 {[%clk 0:01:58]}  Qe7 {[%clk 0:01:40]} 22. Nf5 {[%clk 0:01:53]}  Qg5 {[%clk 0:01:38]} 23. Qf3 {[%clk 0:01:49]}  g6 {[%clk 0:01:21]} 24. Nd6 {[%clk 0:01:46]}  Rc6 {[%clk 0:01:12]} 25. g3 {[%clk 0:01:34]}  Qd8 {[%clk 0:01:08]} 26. h4 {[%clk 0:01:30]}  Qd7 {[%clk 0:01:01]} 27. h5 {[%clk 0:01:28]}  Qe6 {[%clk 0:01:00]} 28. a4 {[%clk 0:01:16]}  bxa4 {[%clk 0:00:42]} 29. bxa4 {[%clk 0:01:16]}  Nxa4 {[%clk 0:00:43]} 30. Rxd5 {[%clk 0:01:15]}  Nb6 {[%clk 0:00:42]} 31. Rdd1 {[%clk 0:01:11]}  Nd7 {[%clk 0:00:39]} 32. Qxc6 {[%clk 0:01:09]} 1-0


[Site "https://www.chess.com"]

[Event "Titled Tuesday Blitz May 30 Early 2023"]
[White "brm72"]
[Black "Zheenbekov, Nurgazy"]
[BlackFideId "13800485"]
[WhiteElo "2616"]
[BlackElo "1975"]
[Result "1/2-1/2"]
[Round "06"]
[TimeControl "180+2"]
[Date "2023.05.30"]
[WhiteClock "0:00:04"]
[BlackClock "0:00:20"]

1. d4 {[%clk 0:03:00]}  Nf6 {[%clk 0:02:54]} 2. c4 {[%clk 0:03:00]}  e6 {[%clk 0:02:54]} 3. Nf3 {[%clk 0:03:00]}  Bb4+ {[%clk 0:02:53]} 4. Bd2 {[%clk 0:03:00]}  Be7 {[%clk 0:02:52]} 5. Nc3 {[%clk 0:02:56]}  d5 {[%clk 0:02:51]} 6. e3 {[%clk 0:02:46]}  O-O {[%clk 0:02:51]} 7. Bd3 {[%clk 0:02:43]}  b6 {[%clk 0:02:51]} 8. O-O {[%clk 0:02:43]}  Bb7 {[%clk 0:02:51]} 9. Ne5 {[%clk 0:02:34]}  Nbd7 {[%clk 0:02:50]} 10. f4 {[%clk 0:02:31]}  Ne4 {[%clk 0:02:49]} 11. cxd5 {[%clk 0:02:14]}  exd5 {[%clk 0:02:47]} 12. Rf3 {[%clk 0:02:11]}  f6 {[%clk 0:02:46]} 13. Nxd7 {[%clk 0:01:46]}  Qxd7 {[%clk 0:02:46]} 14. Rh3 {[%clk 0:01:40]}  g6 {[%clk 0:02:21]} 15. Nxe4 {[%clk 0:01:27]}  dxe4 {[%clk 0:02:20]} 16. Bc4+ {[%clk 0:01:27]}  Kg7 {[%clk 0:02:13]} 17. Rc1 {[%clk 0:01:19]}  c5 {[%clk 0:01:50]} 18. dxc5 {[%clk 0:00:51]}  Bxc5 {[%clk 0:01:45]} 19. Qe2 {[%clk 0:00:47]}  Rad8 {[%clk 0:01:35]} 20. Bc3 {[%clk 0:00:45]}  a6 {[%clk 0:01:27]} 21. b4 {[%clk 0:00:34]}  Be7 {[%clk 0:01:06]} 22. Qf2 {[%clk 0:00:33]}  h5 {[%clk 0:01:00]} 23. Be2 {[%clk 0:00:22]}  Rc8 {[%clk 0:00:47]} 24. Qe1 {[%clk 0:00:10]}  Qe6 {[%clk 0:00:38]} 25. Rg3 {[%clk 0:00:10]}  h4 {[%clk 0:00:35]} 26. Rh3 {[%clk 0:00:09]}  Qxa2 {[%clk 0:00:32]} 27. Qxh4 {[%clk 0:00:07]}  Rh8 {[%clk 0:00:32]} 28. Bxf6+ {[%clk 0:00:04]}  Bxf6 {[%clk 0:00:32]} 29. Rc7+ {[%clk 0:00:05]}  Kg8 {[%clk 0:00:20]} 30. Rxc8+ {[%clk 0:00:04]}  Bxc8 {[%clk 0:00:20]} 31. Qxf6 {[%clk 0:00:03]}  Bxh3 {[%clk 0:00:20]} 32. Qxg6+ {[%clk 0:00:03]}  Kf8 {[%clk 0:00:19]} 33. Qf6+ {[%clk 0:00:03]}  Kg8 {[%clk 0:00:19]} 34. Qg6+ {[%clk 0:00:04]}  Kf8 {[%clk 0:00:20]} 35. Qf6+ {[%clk 0:00:04]}  Kg8 {[%clk 0:00:20]} 36. Qg6+ {[%clk 0:00:04]} 1/2-1/2


[Site "https://www.chess.com"]

[Event "Titled Tuesday Blitz May 30 Early 2023"]
[White "Makaraci, Tunahan"]
[Black "Balla, Tamas-Kristof"]
[WhiteFideId "6356559"]
[BlackFideId "1208497"]
[WhiteElo "2160"]
[BlackElo "2334"]
[Result "1-0"]
[Round "06"]
[TimeControl "180+2"]
[Date "2023.05.30"]
[WhiteClock "0:00:42"]
[BlackClock "0:00:04"]

1. e4 {[%clk 0:03:00]}  c5 {[%clk 0:03:00]} 2. c3 {[%clk 0:03:00]}  Nf6 {[%clk 0:02:59]} 3. e5 {[%clk 0:03:01]}  Nd5 {[%clk 0:03:00]} 4. Nf3 {[%clk 0:03:01]}  Nc6 {[%clk 0:02:59]} 5. d4 {[%clk 0:03:01]}  cxd4 {[%clk 0:03:00]} 6. cxd4 {[%clk 0:03:02]}  d6 {[%clk 0:03:00]} 7. Bc4 {[%clk 0:03:02]}  dxe5 {[%clk 0:03:00]} 8. dxe5 {[%clk 0:02:59]}  Be6 {[%clk 0:03:01]} 9. O-O {[%clk 0:02:54]}  g6 {[%clk 0:03:01]} 10. Ng5 {[%clk 0:02:52]}  Bg7 {[%clk 0:03:01]} 11. Nxe6 {[%clk 0:02:52]}  fxe6 {[%clk 0:03:02]} 12. f4 {[%clk 0:02:52]}  O-O {[%clk 0:03:02]} 13. Nc3 {[%clk 0:02:42]}  Qb6+ {[%clk 0:02:27]} 14. Kh1 {[%clk 0:02:41]}  Rad8 {[%clk 0:02:27]} 15. Qb3 {[%clk 0:02:33]}  Qd4 {[%clk 0:01:31]} 16. Rd1 {[%clk 0:02:22]}  Qf2 {[%clk 0:01:10]} 17. Nxd5 {[%clk 0:02:19]}  exd5 {[%clk 0:01:08]} 18. Bxd5+ {[%clk 0:02:17]}  Kh8 {[%clk 0:01:04]} 19. Be3 {[%clk 0:02:14]}  Qh4 {[%clk 0:01:04]} 20. g3 {[%clk 0:02:12]}  Qh5 {[%clk 0:01:01]} 21. Bg2 {[%clk 0:02:10]}  a5 {[%clk 0:00:38]} 22. Bb6 {[%clk 0:01:54]}  Rc8 {[%clk 0:00:34]} 23. Rac1 {[%clk 0:01:49]}  Nb4 {[%clk 0:00:30]} 24. a3 {[%clk 0:01:41]}  Nc2 {[%clk 0:00:17]} 25. Qf3 {[%clk 0:01:17]}  Qf5 {[%clk 0:00:17]} 26. Qe4 {[%clk 0:01:11]}  Qe6 {[%clk 0:00:17]} 27. Bxa5 {[%clk 0:01:05]}  Qa6 {[%clk 0:00:15]} 28. Bc3 {[%clk 0:00:57]}  Nxa3 {[%clk 0:00:11]} 29. Ra1 {[%clk 0:00:55]}  Rc4 {[%clk 0:00:08]} 30. Rxa3 {[%clk 0:00:48]}  Qb5 {[%clk 0:00:06]} 31. Qxb7 {[%clk 0:00:46]}  Qc5 {[%clk 0:00:04]} 32. Qd5 {[%clk 0:00:42]} 1-0


[Site "https://www.chess.com"]

[Event "Titled Tuesday Blitz May 30 Early 2023"]
[White "Heinemann, Josefine"]
[Black "MKlose11"]
[WhiteFideId "12900460"]
[WhiteElo "2342"]
[BlackElo "2609"]
[Result "1/2-1/2"]
[Round "06"]
[TimeControl "180+2"]
[Date "2023.05.30"]
[WhiteClock "0:00:23"]
[BlackClock "0:00:11"]

1. e4 {[%clk 0:03:00]}  e6 {[%clk 0:02:58]} 2. d4 {[%clk 0:03:00]}  d5 {[%clk 0:02:57]} 3. Nc3 {[%clk 0:02:59]}  Bb4 {[%clk 0:02:57]} 4. e5 {[%clk 0:02:59]}  Ne7 {[%clk 0:02:58]} 5. Qg4 {[%clk 0:02:52]}  Nf5 {[%clk 0:02:39]} 6. Bd3 {[%clk 0:02:46]}  h5 {[%clk 0:02:39]} 7. Qd1 {[%clk 0:02:34]}  Nxd4 {[%clk 0:02:36]} 8. a3 {[%clk 0:02:34]}  Be7 {[%clk 0:02:32]} 9. Be3 {[%clk 0:02:27]}  Ndc6 {[%clk 0:02:22]} 10. Bb5 {[%clk 0:02:19]}  a6 {[%clk 0:02:14]} 11. Bxc6+ {[%clk 0:02:18]}  Nxc6 {[%clk 0:02:15]} 12. Bd4 {[%clk 0:02:14]}  Nxd4 {[%clk 0:02:15]} 13. Qxd4 {[%clk 0:02:15]}  c5 {[%clk 0:02:14]} 14. Qd2 {[%clk 0:02:14]}  b5 {[%clk 0:02:09]} 15. f4 {[%clk 0:02:14]}  Bb7 {[%clk 0:02:09]} 16. Nf3 {[%clk 0:02:13]}  d4 {[%clk 0:02:08]} 17. Nd1 {[%clk 0:02:12]}  Bxf3 {[%clk 0:02:00]} 18. gxf3 {[%clk 0:02:11]}  Bh4+ {[%clk 0:02:00]} 19. Kf1 {[%clk 0:02:11]}  Qd5 {[%clk 0:02:00]} 20. Qe2 {[%clk 0:02:06]}  g6 {[%clk 0:01:54]} 21. Nf2 {[%clk 0:02:06]}  Bxf2 {[%clk 0:01:52]} 22. Kxf2 {[%clk 0:02:06]}  O-O {[%clk 0:01:47]} 23. Rhg1 {[%clk 0:02:02]}  c4 {[%clk 0:01:47]} 24. Rad1 {[%clk 0:02:01]}  Rfd8 {[%clk 0:01:46]} 25. Qe4 {[%clk 0:01:50]}  Kh7 {[%clk 0:01:45]} 26. Rg5 {[%clk 0:01:42]}  Kh6 {[%clk 0:01:40]} 27. Rdg1 {[%clk 0:01:36]}  Qxe4 {[%clk 0:01:26]} 28. fxe4 {[%clk 0:01:37]}  d3 {[%clk 0:01:27]} 29. cxd3 {[%clk 0:01:37]}  Rxd3 {[%clk 0:01:24]} 30. f5 {[%clk 0:01:32]}  exf5 {[%clk 0:01:24]} 31. exf5 {[%clk 0:01:32]}  Rg8 {[%clk 0:01:24]} 32. e6 {[%clk 0:01:27]}  fxe6 {[%clk 0:00:55]} 33. Rxg6+ {[%clk 0:01:27]}  Rxg6 {[%clk 0:00:55]} 34. Rxg6+ {[%clk 0:01:28]}  Kh7 {[%clk 0:00:56]} 35. Rxe6 {[%clk 0:01:28]}  Rd2+ {[%clk 0:00:56]} 36. Re2 {[%clk 0:01:04]}  Rd5 {[%clk 0:00:50]} 37. Re7+ {[%clk 0:01:00]}  Kh6 {[%clk 0:00:37]} 38. h4 {[%clk 0:00:44]}  Rxf5+ {[%clk 0:00:36]} 39. Kg3 {[%clk 0:00:44]}  Rf6 {[%clk 0:00:36]} 40. Re5 {[%clk 0:00:38]}  Rd6 {[%clk 0:00:22]} 41. a4 {[%clk 0:00:24]}  Rd3+ {[%clk 0:00:20]} 42. Kf4 {[%clk 0:00:23]}  Rb3 {[%clk 0:00:20]} 43. axb5 {[%clk 0:00:23]}  axb5 {[%clk 0:00:20]} 44. Re6+ {[%clk 0:00:23]}  Kg7 {[%clk 0:00:20]} 45. Kg5 {[%clk 0:00:23]}  Kf7 {[%clk 0:00:19]} 46. Rf6+ {[%clk 0:00:21]}  Ke7 {[%clk 0:00:18]} 47. Rf2 {[%clk 0:00:22]}  b4 {[%clk 0:00:13]} 48. Kxh5 {[%clk 0:00:22]}  Rg3 {[%clk 0:00:11]} 49. Rf4 {[%clk 0:00:20]}  c3 {[%clk 0:00:05]} 50. bxc3 {[%clk 0:00:20]}  bxc3 {[%clk 0:00:04]} 51. Rc4 {[%clk 0:00:19]}  Kd6 {[%clk 0:00:05]} 52. Kh6 {[%clk 0:00:20]}  Kd5 {[%clk 0:00:04]} 53. Rc8 {[%clk 0:00:20]}  Kd4 {[%clk 0:00:03]} 54. h5 {[%clk 0:00:21]}  Kd3 {[%clk 0:00:03]} 55. Kh7 {[%clk 0:00:21]}  Kd2 {[%clk 0:00:03]} 56. h6 {[%clk 0:00:22]}  c2 {[%clk 0:00:03]} 57. Kh8 {[%clk 0:00:21]}  Rc3 {[%clk 0:00:03]} 58. Rxc3 {[%clk 0:00:17]}  Kxc3 {[%clk 0:00:03]} 59. h7 {[%clk 0:00:17]}  c1=Q {[%clk 0:00:04]} 60. Kg8 {[%clk 0:00:18]}  Qg5+ {[%clk 0:00:04]} 61. Kf7 {[%clk 0:00:18]}  Qf5+ {[%clk 0:00:04]} 62. Kg7 {[%clk 0:00:19]}  Qg5+ {[%clk 0:00:04]} 63. Kf7 {[%clk 0:00:19]}  Qh6 {[%clk 0:00:05]} 64. Kg8 {[%clk 0:00:19]}  Qg6+ {[%clk 0:00:06]} 65. Kh8 {[%clk 0:00:19]}  Qf6+ {[%clk 0:00:06]} 66. Kg8 {[%clk 0:00:19]}  Qd8+ {[%clk 0:00:07]} 67. Kg7 {[%clk 0:00:19]}  Qd7+ {[%clk 0:00:07]} 68. Kg8 {[%clk 0:00:20]}  Qc8+ {[%clk 0:00:08]} 69. Kg7 {[%clk 0:00:20]}  Qb7+ {[%clk 0:00:09]} 70. Kg8 {[%clk 0:00:21]}  Qa8+ {[%clk 0:00:09]} 71. Kg7 {[%clk 0:00:22]}  Qa7+ {[%clk 0:00:10]} 72. Kg8 {[%clk 0:00:22]}  Qb8+ {[%clk 0:00:10]} 73. Kg7 {[%clk 0:00:23]}  Qe5+ {[%clk 0:00:11]} 74. Kg8 {[%clk 0:00:23]}  Qg5+ {[%clk 0:00:11]} 75. Kf7 {[%clk 0:00:23]} 1/2-1/2


[Site "https://www.chess.com"]